[Event "56th Biel Festival MTO 2023"]
[White "Sukandar,Irine Kharisma"]
[Black "Bu,Xiangzhi"]
[Site "Biel"]
[Round "4.3"]
[Annotator "TA"]
[Result "0-1"]
[Date "2023.07.20"]
[WhiteElo "2358"]
[BlackElo "2676"]
[PlyCount "76"]
[TimeControl "60"]

{[%evp 9,76,0,13,11,10,4,1,0,9,-19,-16,-31,-14,-13,-10,-17,-18,-31,-13,-7,-14,-74,-79,-87,0,-214,-276,-279,-279,-256,-225,-239,-270,-260,-136,-443,-139,-191,-156,-172,-189,-193,-164,-157,-127,-268,-27,-334,-333,-333,-328,-319,-319,-447,-340,-770,-760,-739,-739,-778,-759,-993,-987,-1404,-1375,-1219,-788,-1062,-1036]} 1. e4 {[%emt 0:0:0]} c5 {[%emt 0:0:0]} 2. Nf3 {[%emt 0:0:0]} d6 {[%emt 0:0:0]} 3. Bb5+ {[%emt 0:0:0]} Nd7 {[%emt 0:0:0]} 4. Ba4 {[%emt 0:0:0]} Ngf6 {[%emt 0:0:0]} 5. d3 {[%emt 0:0:0]} g6 {[%emt 0:0:0]} 6. O-O {[%emt 0:0:0] B51: Sicilian: Moscow Variation (3 Bb5+) without 3...Bd7.} Bg7 {[%emt 0:0:0]} 7. c4 {[%emt 0:0:0]} O-O {[%emt 0:0:0]} 8. h3 {[%emt 0:0:0] The position is equal.} b6 {[%emt 0:0:0]} 9. Bc6 {[%emt 0:0:54]} Rb8 {[%emt 0:3:13]} 10. Nc3 {[%emt 0:0:12]} Ne5 {[%emt 0:8:10]} 11. Nxe5 {[%emt 0:4:48]} dxe5 {[%emt 0:0:3] [#]} 12. Be3 $146 {[%emt 0:0:52]} ({Predecessor:} 12. Bg5 Nh5 13. Rb1 h6 14. Be3 Bb7 15. Bxb7 Rxb7 16. Ne2 Rd7 17. Qc2 e6 18. Rfd1 {0-1 Jareno Espinosa,E (1910)-Martinez Puigros,R (1882) ESP AEAC W/P/123 email 2020} )Nh5 {[%emt 0:2:24]} 13. Rb1 {[%emt 0:3:20]} Nf4 {[%emt 0:6:54]} 14. b4 {[%emt 0:9:15]} cxb4 {[%emt 0:4:26]} 15. Rxb4 {[%emt 0:0:51]} (15. Nd5 $11 )Qd6 $17 {[%emt 0:25:52]} (15... Qxd3 16. Nd5 $11 )16. Qa4 {[%emt 0:0:42]} Qf6 {[%emt 0:5:0] Black is more active.} (16... Nxd3 $6 17. Rb3 $11 )(16... Qxd3 17. Bxf4 exf4 18. Nd5 $11 )(16... Nxh3+ $1 $17 17. gxh3 Bxh3 )17. Kh2 $2 {[%emt 0:42:27]} (17. Qxa7 $2 {is the wrong capture.} Bxh3 18. Bxf4 exf4 19. gxh3 Qg5+ 20. Kh1 Bxc3 $19 )(17. Bxf4 $11 exf4 18. Nd5 (18. Qxa7 $2 Bxh3 19. gxh3 Qg5+ 20. Kh1 Bxc3 $19 ))Qg5 $19 {[%emt 0:11:12][%csl Gf4][%cal Rg5g2]} ({But not} 17... Nxd3 18. Nd5 Qd6 19. Rb3 $16 )18. Rg1 {[%emt 0:0:39]} Qh4 $1 {[%emt 0:1:29][%cal Rc8h3] ( -> ...Bxh3!)} 19. Bd7 {[%emt 0:4:9] [#]} b5 $1 {[%emt 0:4:14]} ({Not} 19... Nxd3 20. g3 Qh5 21. Bxc8 Rbxc8 22. Nd5 $15 )20. Bxc8 {[%emt 0:0:18]} bxa4 {[%emt 0:0:5]} 21. Rxb8 {[%emt 0:0:5]} Nxd3 {[%emt 0:1:42]} (21... e6 $19 22. c5 h5 )22. f3 $2 {[%emt 0:8:2][%mdl 8192]} (22. g3 $17 Qf6 23. c5 Nxc5 24. Bxc5 )Qf6 $2 {[%emt 0:11:30]} (22... e6 $19 {and Black stays clearly on top.} 23. Rd1 Nf4 24. Nxa4 Bh6 )23. c5 $17 {[%emt 0:6:48] [#]} Nxc5 $1 {[%emt 0:0:23][%mdl 576] Decoy} 24. Bxc5 {[%emt 0:0:20] aiming for Nd5.} Qc6 {[%emt 0:0:6][%csl LRc5,LRc8] Prevents Nd5} 25. Bxe7 {[%emt 0:1:1]} Rxc8 {[%emt 0:0:4]} 26. Rxc8+ {[%emt 0:0:23]} Qxc8 {[%emt 0:0:4]} 27. Nd5 {[%emt 0:0:6]} (27. Rd1 $17 Qxc3 28. Rd8+ Bf8 29. Bxf8 )f5 $2 {[%emt 0:2:48]} (27... Qc2 $19 {[%cal Og7h6] Strongly threatening ...Bh6!} 28. Bg5 Qxa2 )28. Ba3 $2 {[%emt 0:5:43][%mdl 8192]} (28. Bg5 $1 $11 {and White stays safe.} Qa6 29. Rc1 )Bf8 $19 {[%emt 0:2:54]} 29. Rc1 {[%emt 0:0:6]} Qa6 {[%emt 0:0:19]} 30. Bxf8 {[%emt 0:2:11]} Kxf8 {[%emt 0:0:2][%mdl 4096] Endgame KQ-KRN} 31. Rc7 {[%emt 0:1:35]} (31. Rc2 {was worth a try.} )h5 {[%emt 0:4:4] ...fxe4 is the strong threat.} 32. Rd7 $2 {[%emt 0:3:15]} (32. Rc2 )fxe4 {[%emt 0:4:7] Black is clearly winning.} 33. fxe4 {[%emt 0:0:10]} Qe2 {[%emt 0:0:34][%csl LRa2,LRe4]} 34. Rxa7 {[%emt 0:7:34]} Qxe4 {[%emt 0:0:12]} 35. Ra5 {[%emt 0:0:41]} Qd4 {[%emt 0:2:46]} 36. Kh1 {[%emt 0:0:47]} e4 {[%emt 0:0:27]} 37. Nf4 {[%emt 0:0:52]} Qd1+ {[%emt 0:0:26]} 38. Kh2 {[%emt 0:0:1]} Qd6 {[%emt 0:0:6] Weighted Error Value: White=0.87/Black=0.52} 0-1

[Event "56th Biel Festival MTO 2023"]
[White "Yuffa,Daniil"]
[Black "Muthaiah AL"]
[Site "Biel"]
[Round "4.4"]
[Annotator "ChessBase"]
[Result "1/2-1/2"]
[Date "2023.07.20"]
[WhiteElo "2603"]
[BlackElo "2445"]
[PlyCount "47"]
[TimeControl "60"]

1. Nf3 {[%emt 0:0:0]} d5 {[%emt 0:0:0]} 2. c4 {[%emt 0:0:0]} c6 {[%emt 0:0:0]} 3. d4 {[%emt 0:0:0]} Nf6 {[%emt 0:0:0]} 4. Nc3 {[%emt 0:0:0]} dxc4 {[%emt 0:0:0]} 5. a4 {[%emt 0:0:0]} Bf5 {[%emt 0:0:0]} 6. e3 {[%emt 0:0:0]} e6 {[%emt 0:0:0]} 7. Bxc4 {[%emt 0:0:0]} Bb4 {[%emt 0:0:0]} 8. O-O {[%emt 0:0:0]} O-O {[%emt 0:0:0]} 9. Qe2 {[%emt 0:0:0]} Bg6 {[%emt 0:0:0]} 10. Ne5 {[%emt 0:0:0]} Nbd7 {[%emt 0:2:28]} 11. Nxg6 {[%emt 0:0:0]} hxg6 {[%emt 0:0:10]} 12. Rd1 {[%emt 0:0:28]} Qa5 {[%emt 0:24:20]} 13. Qc2 {[%emt 0:18:24]} Rad8 {[%emt 0:15:13]} 14. Bd2 {[%emt 0:25:11]} Nb6 {[%emt 0:8:38]} 15. Bb3 {[%emt 0:5:49]} c5 {[%emt 0:2:56]} 16. dxc5 {[%emt 0:5:48]} Qxc5 {[%emt 0:3:30]} 17. Be1 {[%emt 0:2:49]} a5 {[%emt 0:5:41]} 18. Qe2 {[%emt 0:2:59]} Qh5 {[%emt 0:6:46]} 19. Qxh5 {[%emt 0:4:6]} gxh5 {[%emt 0:1:23]} 20. Kf1 {[%emt 0:1:48]} Rxd1 {[%emt 0:5:58]} 21. Rxd1 {[%emt 0:1:46]} Rc8 {[%emt 0:0:33]} 22. Nb5 {[%emt 0:6:25]} Bxe1 {[%emt 0:2:30]} 23. Kxe1 {[%emt 0:0:6]} Kf8 {[%emt 0:2:36]} 24. Nd6 {[%emt 0:2:13]} 1/2-1/2

[Event "56th Biel Festival MTO 2023"]
[White "Quesada Perez,Luis Ernesto"]
[Black "Harikrishnan.A.Ra"]
[Site "Biel"]
[Round "4.5"]
[Annotator "RC"]
[Result "1/2-1/2"]
[Date "2023.07.20"]
[WhiteElo "2553"]
[BlackElo "2406"]
[PlyCount "160"]
[TimeControl "60"]

1. d4 {[%emt 0:0:0]} d5 {[%emt 0:0:0]} 2. c4 {[%emt 0:0:0]} c6 {[%emt 0:0:0]} 3. Nf3 {[%emt 0:0:0]} Nf6 {[%emt 0:0:0]} 4. e3 {[%emt 0:0:0]} Bf5 {[%emt 0:0:0]} 5. Nc3 {[%emt 0:0:0]} e6 {[%emt 0:0:0]} 6. Nh4 {[%emt 0:0:0]} Be4 {[%emt 0:0:0]} 7. f3 {[%emt 0:0:0]} Bg6 {[%emt 0:0:0]} 8. Qb3 {[%emt 0:0:0]} Qc7 {[%emt 0:0:0]} 9. Bd2 {[%emt 0:0:0]} a5 {[%emt 0:0:0]} 10. cxd5 {[%emt 0:4:28]} Nxd5 {[%emt 0:0:0]} 11. e4 {[%emt 0:20:29]} Nxc3 {[%emt 0:0:0]} 12. bxc3 {[%emt 0:0:7]} b5 {[%emt 0:0:0]} 13. g3 {[%emt 0:8:20]} Be7 {[%emt 0:0:0]} 14. Nxg6 {[%emt 0:0:13]} hxg6 {[%emt 0:0:0]} 15. Kf2 {[%emt 0:0:9]} Nd7 {[%emt 0:0:0]} 16. Kg2 {[%emt 0:1:51]} g5 {[%emt 0:3:8]} 17. Be2 {[%emt 0:17:57]} O-O {[%emt 0:1:4]} 18. Qc2 {[%emt 0:6:37]} e5 {[%emt 0:14:29]} 19. Qc1 {[%emt 0:0:37]} Rfd8 {[%emt 0:21:45]} 20. Rd1 {[%emt 0:8:19]} Nf8 {[%emt 0:1:5]} 21. Be3 {[%emt 0:4:37]} Bf6 {[%emt 0:18:22]} 22. Rb1 {[%emt 0:0:51]} b4 {[%emt 0:5:38]} 23. dxe5 {[%emt 0:1:49]} Rxd1 {[%emt 0:6:53]} 24. Bxd1 {[%emt 0:1:1]} Qxe5 {[%emt 0:1:1]} 25. cxb4 {[%emt 0:0:9]} axb4 {[%emt 0:0:13]} 26. Bb3 {[%emt 0:0:33]} g4 {[%emt 0:2:1]} 27. Qxc6 {[%emt 0:3:32]} gxf3+ {[%emt 0:0:27]} 28. Kxf3 {[%emt 0:0:7]} Qh5+ {[%emt 0:7:1]} 29. Kg2 {[%emt 0:0:1]} Rd8 {[%emt 0:2:44]} 30. Qc4 {[%emt 0:6:17]} Ne6 {[%emt 0:1:46]} 31. Rf1 {[%emt 0:0:21]} Bd4 {[%emt 0:6:7]} 32. Bc1 {[%emt 0:7:0]} Qg4 {[%emt 0:1:24]} 33. Qc2 {[%emt 0:0:32]} Bf6 {[%emt 0:3:29]} 34. Bd5 {[%emt 0:3:27]} Ng5 {[%emt 0:2:47]} 35. Bxg5 {[%emt 0:1:42]} Qxg5 {[%emt 0:0:2]} 36. Qc4 {[%emt 0:0:47]} Qd2+ {[%emt 0:3:29]} 37. Rf2 {[%emt 0:0:25]} Qc3 {[%emt 0:0:14]} 38. Bxf7+ {[%emt 0:0:20]} Kf8 {[%emt 0:0:17]} 39. Qe6 {[%emt 0:4:41]} Qe5 {[%emt 0:0:27]} 40. Qxe5 {[%emt 0:0:52]} Bxe5 {[%emt 0:0:2]} 41. Bb3+ {[%emt 0:31:52]} Ke7 {[%emt 0:31:32]} 42. Kh3 {[%emt 0:0:0]} Rh8+ {[%emt 0:0:0]} 43. Kg4 {[%emt 0:0:0]} Rh6 {[%emt 0:0:0]} 44. Rc2 {[%emt 0:0:0]} Kd6 {[%emt 0:0:0]} 45. Rd2+ {[%emt 0:0:0]} Ke7 {[%emt 0:0:0]} 46. Rd5 {[%emt 0:0:0]} Bc3 {[%emt 0:0:0]} 47. h4 {[%emt 0:0:0]} Rg6+ {[%emt 0:0:0]} 48. Kf3 {[%emt 0:0:0]} Be1 {[%emt 0:0:0]} 49. g4 {[%emt 0:0:0]} Bxh4 {[%emt 0:0:0]} 50. Rb5 {[%emt 0:0:0]} Rf6+ {[%emt 0:0:0]} 51. Ke3 {[%emt 0:0:0]} Rg6 {[%emt 0:0:0]} 52. Rb7+ {[%emt 0:0:0]} Kd8 {[%emt 0:0:0]} 53. Kf4 {[%emt 0:0:0]} Rf6+ {[%emt 0:3:24]} 54. Ke5 {[%emt 0:0:0]} Bg3+ {[%emt 0:0:9]} 55. Kd5 {[%emt 0:0:0]} Rd6+ {[%emt 0:0:29]} 56. Kc5 {[%emt 0:1:14]} Rg6 {[%emt 0:0:24]} 57. Kxb4 {[%emt 0:0:46]} Rxg4 {[%emt 0:0:39]} 58. Bd5 {[%emt 0:0:10]} Bc7 {[%emt 0:2:8]} 59. Ra7 {[%emt 0:2:51]} Rg1 {[%emt 0:0:41]} 60. Ra8+ {[%emt 0:0:22]} Kd7 {[%emt 0:0:29]} 61. Rg8 {[%emt 0:0:20]} Be5 {[%emt 0:1:56]} 62. a4 {[%emt 0:0:5]} Rb1+ {[%emt 0:1:36]} 63. Bb3 {[%emt 0:0:23]} Rc1 {[%emt 0:0:0]} 64. Bc2 {[%emt 0:0:0]} Rd1 {[%emt 0:0:0]} 65. Bd3 {[%emt 0:0:0]} Kc6 {[%emt 0:0:0]} 66. Kc4 {[%emt 0:0:0]} Kd7 {[%emt 0:0:0]} 67. Ra8 {[%emt 0:0:0]} g5 {[%emt 0:0:0]} 68. Rg8 {[%emt 0:0:0]} Bf4 {[%emt 0:0:0]} 69. a5 {[%emt 0:0:0]} Ra1 {[%emt 0:0:0]} 70. Kb5 {[%emt 0:0:0]} Kd6 {[%emt 0:0:15]} 71. a6 {[%emt 0:0:0]} Be3 {[%emt 0:0:12]} 72. Be2 {[%emt 0:0:0]} Rb1+ {[%emt 0:1:4]} 73. Kc4 {[%emt 0:0:0]} Ra1 {[%emt 0:0:14]} 74. Kb3 {[%emt 0:0:0]} Ra5 {[%emt 0:1:30]} 75. Kb4 {[%emt 0:0:31]} Bd2+ {[%emt 0:0:19]} 76. Kc4 {[%emt 0:0:12]} Be3 {[%emt 0:0:28]} 77. Bf3 {[%emt 0:3:8]} Ke5 {[%emt 0:0:46]} 78. Rg6 {[%emt 0:1:52]} Ra1 {[%emt 0:0:41]} 79. Kd3 {[%emt 0:0:47]} Ra3+ {[%emt 0:1:7]} 80. Ke2 {[%emt 0:0:2]} Bf4 {[%emt 0:0:40]} 1/2-1/2

[Event "56th Biel Festival MTO 2023"]
[White "Pranav Anand"]
[Black "Materia,Marco"]
[Site "Biel"]
[Round "4.6"]
[Annotator "RC"]
[Result "1-0"]
[Date "2023.07.20"]
[WhiteElo "2510"]
[BlackElo "2436"]
[PlyCount "111"]
[TimeControl "60"]

1. e4 {[%emt 0:0:0]} c5 {[%emt 0:0:0]} 2. Nf3 {[%emt 0:0:0]} e6 {[%emt 0:0:0]} 3. d4 {[%emt 0:0:0]} cxd4 {[%emt 0:0:0]} 4. Nxd4 {[%emt 0:0:0]} Nc6 {[%emt 0:0:0]} 5. Nc3 {[%emt 0:0:0]} Qc7 {[%emt 0:0:0]} 6. Be3 {[%emt 0:0:0]} a6 {[%emt 0:0:0]} 7. Qf3 {[%emt 0:0:0]} Bd6 {[%emt 0:0:0]} 8. Nxc6 {[%emt 0:0:0]} bxc6 {[%emt 0:0:0]} 9. O-O-O {[%emt 0:0:0]} Be5 {[%emt 0:0:0]} 10. Bd4 {[%emt 0:0:0]} Bxd4 {[%emt 0:0:0]} 11. Rxd4 {[%emt 0:0:0]} d5 {[%emt 0:0:0]} 12. Bd3 {[%emt 0:0:0]} Bb7 {[%emt 0:4:39]} 13. exd5 {[%emt 0:0:58]} cxd5 {[%emt 0:0:9]} 14. Re1 {[%emt 0:5:19]} Nf6 {[%emt 0:0:10]} 15. g4 {[%emt 0:7:14]} Qc5 {[%emt 0:2:2]} 16. Qe3 {[%emt 0:12:14]} Kf8 {[%emt 0:37:2]} 17. g5 {[%emt 0:11:14]} Nd7 {[%emt 0:5:16]} 18. f4 {[%emt 0:5:57]} Rc8 {[%emt 0:9:50]} 19. h4 {[%emt 0:4:5]} Nb8 {[%emt 0:7:8]} 20. Ra4 {[%emt 0:7:14]} Qxe3+ {[%emt 0:0:38]} 21. Rxe3 {[%emt 0:0:1]} g6 {[%emt 0:1:53]} 22. Ne2 {[%emt 0:6:57]} Kg7 {[%emt 0:3:0]} 23. h5 {[%emt 0:4:19]} Rhd8 {[%emt 0:1:16]} 24. h6+ {[%emt 0:3:28]} Kf8 {[%emt 0:2:11]} 25. Nd4 {[%emt 0:1:32]} Rd6 {[%emt 0:2:21]} 26. Be2 {[%emt 0:4:11]} Rb6 {[%emt 0:7:47]} 27. Rb3 {[%emt 0:2:54]} Rxb3 {[%emt 0:0:22]} 28. axb3 {[%emt 0:0:2]} Ke7 {[%emt 0:1:5]} 29. b4 {[%emt 0:0:57]} Rc7 {[%emt 0:0:27]} 30. Nb3 {[%emt 0:6:37]} Kd6 {[%emt 0:5:56]} 31. Nc5 {[%emt 0:2:33]} Kc6 {[%emt 0:0:18]} 32. Nd3 {[%emt 0:5:51]} Kb6 {[%emt 0:0:28]} 33. Ne5 {[%emt 0:0:36]} Re7 {[%emt 0:0:46]} 34. Kd2 {[%emt 0:0:36]} Nd7 {[%emt 0:0:29]} 35. Ng4 {[%emt 0:0:30]} Re8 {[%emt 0:3:6]} 36. c3 {[%emt 0:1:0]} Bc8 {[%emt 0:5:4]} 37. Ra1 {[%emt 0:2:17]} f5 {[%emt 0:2:24]} 38. gxf6 {[%emt 0:3:7]} Rf8 {[%emt 0:0:2]} 39. Ke3 {[%emt 0:0:12]} Nxf6 {[%emt 0:0:1]} 40. Nxf6 {[%emt 0:1:15]} Rxf6 {[%emt 0:0:2]} 41. Bd3 {[%emt 0:30:18]} Bb7 {[%emt 0:1:53]} 42. b3 {[%emt 0:0:0]} d4+ {[%emt 0:1:24]} 43. cxd4 {[%emt 0:0:0]} Rf8 {[%emt 0:0:39]} 44. Ra5 {[%emt 0:0:0]} Rd8 {[%emt 0:8:4]} 45. Bc4 {[%emt 0:0:0]} Rd6 {[%emt 0:0:14]} 46. Re5 {[%emt 0:0:0]} Bc8 {[%emt 0:1:21]} 47. Kd3 {[%emt 0:0:0]} a5 {[%emt 0:0:21]} 48. Ke3 {[%emt 0:0:0]} Kc7 {[%emt 0:2:32]} 49. Kd3 {[%emt 0:0:0]} Kd8 {[%emt 0:1:11]} 50. Rc5 {[%emt 0:0:0]} Bd7 {[%emt 0:0:31]} 51. Ke4 {[%emt 0:0:0]} Rb6 {[%emt 0:0:3]} 52. Ke5 {[%emt 0:0:0]} Rd6 {[%emt 0:0:13]} 53. Kf6 {[%emt 0:0:0]} Rxd4 {[%emt 0:0:5]} 54. Kg7 {[%emt 0:0:0]} Bc8 {[%emt 0:0:4]} 55. Kxh7 {[%emt 0:0:0]} Rxf4 {[%emt 0:0:11]} 56. Kg7 {[%emt 0:0:0]} 1-0

[Event "56th Biel Festival MTO 2023"]
[White "Saraci,Nderim"]
[Black "Deuer,Marius"]
[Site "Biel"]
[Round "4.7"]
[Annotator "RC"]
[Result "0-1"]
[Date "2023.07.20"]
[WhiteElo "2472"]
[BlackElo "2374"]
[PlyCount "122"]
[TimeControl "60"]

1. e4 {[%emt 0:0:0]} c6 {[%emt 0:0:0]} 2. d4 {[%emt 0:0:0]} d5 {[%emt 0:0:0]} 3. exd5 {[%emt 0:0:0]} cxd5 {[%emt 0:0:0]} 4. Bd3 {[%emt 0:0:0]} Nf6 {[%emt 0:0:0]} 5. c3 {[%emt 0:0:0]} Bg4 {[%emt 0:0:0]} 6. Qb3 {[%emt 0:0:0]} Qc7 {[%emt 0:0:0]} 7. h3 {[%emt 0:0:0]} Bd7 {[%emt 0:0:0]} 8. Ne2 {[%emt 0:2:10]} Nc6 {[%emt 0:0:0]} 9. O-O {[%emt 0:8:39]} e6 {[%emt 0:0:0]} 10. Bf4 {[%emt 0:7:44]} Bd6 {[%emt 0:5:21]} 11. Bxd6 {[%emt 0:3:48]} Qxd6 {[%emt 0:0:7]} 12. Nd2 {[%emt 0:3:12]} Rb8 {[%emt 0:5:1]} 13. a4 {[%emt 0:5:5]} O-O {[%emt 0:5:23]} 14. Nf3 {[%emt 0:2:29]} Rfe8 {[%emt 0:4:11]} 15. Rfe1 {[%emt 0:5:58]} g6 {[%emt 0:15:38]} 16. Qa3 {[%emt 0:18:6]} Qc7 {[%emt 0:14:38]} 17. a5 {[%emt 0:6:51]} Kg7 {[%emt 0:9:50]} 18. Ng3 {[%emt 0:8:26]} e5 {[%emt 0:2:42]} 19. dxe5 {[%emt 0:1:46]} Nxe5 {[%emt 0:0:7]} 20. Nxe5 {[%emt 0:4:6]} Rxe5 {[%emt 0:0:5]} 21. Rxe5 {[%emt 0:1:11]} Qxe5 {[%emt 0:0:9]} 22. Qc5 {[%emt 0:0:46]} b6 {[%emt 0:4:51]} 23. axb6 {[%emt 0:0:33]} axb6 {[%emt 0:2:14]} 24. Qb4 {[%emt 0:1:11]} h5 {[%emt 0:2:1]} 25. Nf1 {[%emt 0:2:27]} Qg5 {[%emt 0:4:0]} 26. Kh2 {[%emt 0:6:14]} d4 {[%emt 0:9:1]} 27. cxd4 {[%emt 0:5:49]} Bc6 {[%emt 0:2:59]} 28. Ne3 {[%emt 0:0:27]} Re8 {[%emt 0:1:39]} 29. d5 {[%emt 0:1:57]} Nxd5 {[%emt 0:0:56]} 30. Nxd5 {[%emt 0:0:59]} Bxd5 {[%emt 0:1:24]} 31. Qd4+ {[%emt 0:2:9]} Qe5+ {[%emt 0:4:14]} 32. Qxe5+ {[%emt 0:0:5]} Rxe5 {[%emt 0:0:5]} 33. Ra4 {[%emt 0:1:0]} Bc6 {[%emt 0:2:30]} 34. Rb4 {[%emt 0:0:28]} b5 {[%emt 0:1:31]} 35. Rd4 {[%emt 0:0:48]} Kf6 {[%emt 0:0:9]} 36. f4 {[%emt 0:2:16]} Re3 {[%emt 0:2:45]} 37. b4 {[%emt 0:1:3]} Ke7 {[%emt 0:0:59]} 38. Kg1 {[%emt 0:1:5]} Re1+ {[%emt 0:2:14]} 39. Kf2 {[%emt 0:0:5]} Rd1 {[%emt 0:0:4]} 40. g3 {[%emt 0:0:53]} Rd2+ {[%emt 0:1:47]} 41. Ke3 {[%emt 0:0:0]} Rg2 {[%emt 0:0:0]} 42. Be4 {[%emt 0:4:41]} Rxg3+ {[%emt 0:0:0]} 43. Kf2 {[%emt 0:0:6]} Rc3 {[%emt 0:0:0]} 44. Bxc6 {[%emt 0:1:11]} Rxc6 {[%emt 0:0:0]} 45. Rd5 {[%emt 0:0:3]} Rc4 {[%emt 0:0:0]} 46. Rxb5 {[%emt 0:0:55]} Rxf4+ {[%emt 0:0:0]} 47. Kg3 {[%emt 0:2:19]} Rc4 {[%emt 0:0:0]} 48. h4 {[%emt 0:6:9]} Ke6 {[%emt 0:4:30]} 49. Rb7 {[%emt 0:0:15]} f6 {[%emt 0:0:39]} 50. b5 {[%emt 0:8:47]} Rg4+ {[%emt 0:7:30]} 51. Kh3 {[%emt 0:0:33]} Rb4 {[%emt 0:0:6]} 52. b6 {[%emt 0:0:38]} Kf5 {[%emt 0:0:42]} 53. Rb8 {[%emt 0:1:36]} Rb3+ {[%emt 0:1:6]} 54. Kg2 {[%emt 0:1:45]} Kg4 {[%emt 0:0:24]} 55. b7 {[%emt 0:0:35]} Rb2+ {[%emt 0:0:9]} 56. Kg1 {[%emt 0:2:14]} g5 {[%emt 0:0:42]} 57. hxg5 {[%emt 0:0:33]} fxg5 {[%emt 0:0:9]} 58. Ra8 {[%emt 0:0:40]} Rxb7 {[%emt 0:0:7]} 59. Ra4+ {[%emt 0:0:5]} Kh3 {[%emt 0:0:33]} 60. Ra3+ {[%emt 0:0:10]} Kh4 {[%emt 0:0:5]} 61. Ra4+ {[%emt 0:0:4]} g4 {[%emt 0:0:13]} 0-1

[Event "56th Biel Festival MTO 2023"]
[White "Chasin,Nico"]
[Black "Peng,Xiongjian"]
[Site "Biel"]
[Round "4.8"]
[Annotator "RC"]
[Result "0-1"]
[Date "2023.07.20"]
[WhiteElo "2455"]
[BlackElo "2489"]
[PlyCount "60"]
[TimeControl "60"]

1. d4 {[%emt 0:0:0]} d5 {[%emt 0:0:0]} 2. c4 {[%emt 0:0:0]} c6 {[%emt 0:0:0]} 3. Nf3 {[%emt 0:0:0]} Nf6 {[%emt 0:0:0]} 4. e3 {[%emt 0:0:0]} e6 {[%emt 0:0:0]} 5. Qc2 {[%emt 0:0:0]} Nbd7 {[%emt 0:0:0]} 6. Nc3 {[%emt 0:0:14]} Be7 {[%emt 0:0:0]} 7. Be2 {[%emt 0:0:50]} dxc4 {[%emt 0:0:0]} 8. Bxc4 {[%emt 0:0:9]} c5 {[%emt 0:0:0]} 9. O-O {[%emt 0:2:35]} a6 {[%emt 0:0:0]} 10. a4 {[%emt 0:4:17]} Qc7 {[%emt 0:5:24]} 11. Qe2 {[%emt 0:11:15]} O-O {[%emt 0:1:12]} 12. a5 {[%emt 0:6:48]} b5 {[%emt 0:6:19]} 13. axb6 {[%emt 0:2:49]} Nxb6 {[%emt 0:0:9]} 14. Bd3 {[%emt 0:0:31]} Bb7 {[%emt 0:4:6]} 15. dxc5 {[%emt 0:3:57]} Bxc5 {[%emt 0:0:7]} 16. Bd2 {[%emt 0:2:46]} Rfd8 {[%emt 0:17:4]} 17. Bxa6 {[%emt 0:2:57]} Rxa6 {[%emt 0:0:39]} 18. Rxa6 {[%emt 0:0:44]} Ng4 {[%emt 0:0:23]} 19. Rd1 {[%emt 0:2:56]} Nc4 {[%emt 0:5:23]} 20. h3 {[%emt 0:18:47]} Bxf3 {[%emt 0:18:3]} 21. Qxf3 {[%emt 0:2:33]} Qh2+ {[%emt 0:0:20]} 22. Kf1 {[%emt 0:0:4]} Nxd2+ {[%emt 0:0:3]} 23. Ke2 {[%emt 0:6:27]} Nxf3 {[%emt 0:0:22]} 24. Rxd8+ {[%emt 0:0:7]} Bf8 {[%emt 0:0:2]} 25. Raa8 {[%emt 0:0:2]} h6 {[%emt 0:0:57]} 26. Rxf8+ {[%emt 0:2:26]} Kh7 {[%emt 0:0:4]} 27. hxg4 {[%emt 0:0:31]} Qxg2 {[%emt 0:0:18]} 28. Ra4 {[%emt 0:0:20]} Ne5 {[%emt 0:3:13]} 29. Rd8 {[%emt 0:0:4]} Nxg4 {[%emt 0:4:13]} 30. Rf4 {[%emt 0:0:29]} f5 {[%emt 0:0:31]} 0-1

[Event "56th Biel Festival MTO 2023"]
[White "Morawietz,Dieter"]
[Black "Albornoz Cabrera,Carlos Daniel"]
[Site "Biel"]
[Round "4.9"]
[Annotator "RC"]
[Result "0-1"]
[Date "2023.07.20"]
[WhiteElo "2396"]
[BlackElo "2591"]
[PlyCount "90"]
[TimeControl "60"]

1. e4 {[%emt 0:0:0]} c5 {[%emt 0:0:0]} 2. Nf3 {[%emt 0:0:0]} d6 {[%emt 0:0:0]} 3. d4 {[%emt 0:0:0]} cxd4 {[%emt 0:0:0]} 4. Nxd4 {[%emt 0:0:0]} Nf6 {[%emt 0:0:0]} 5. Nc3 {[%emt 0:0:0]} a6 {[%emt 0:0:0]} 6. Be3 {[%emt 0:0:0]} e5 {[%emt 0:0:0]} 7. Nb3 {[%emt 0:0:0]} Be7 {[%emt 0:0:0]} 8. Be2 {[%emt 0:0:0]} Be6 {[%emt 0:0:0]} 9. O-O {[%emt 0:0:0]} O-O {[%emt 0:0:0]} 10. a4 {[%emt 0:0:0]} Nc6 {[%emt 0:0:0]} 11. Qd2 {[%emt 0:0:0]} Nb4 {[%emt 0:4:15]} 12. Rad1 {[%emt 0:5:17]} Rc8 {[%emt 0:21:6]} 13. f4 {[%emt 0:4:46]} Ng4 {[%emt 0:0:10]} 14. Bxg4 {[%emt 0:10:43]} Bxg4 {[%emt 0:0:57]} 15. Rc1 {[%emt 0:0:5]} Be6 {[%emt 0:2:16]} 16. Nd5 {[%emt 0:11:17]} Nxd5 {[%emt 0:1:20]} 17. exd5 {[%emt 0:3:36]} Bg4 {[%emt 0:0:8]} 18. c4 {[%emt 0:2:35]} Qd7 {[%emt 0:19:13]} 19. a5 {[%emt 0:12:35]} Qa4 {[%emt 0:15:41]} 20. Na1 {[%emt 0:7:27]} exf4 {[%emt 0:0:41]} 21. Bxf4 {[%emt 0:4:27]} Rfe8 {[%emt 0:4:51]} 22. b3 {[%emt 0:3:31]} Qd7 {[%emt 0:1:14]} 23. Nc2 {[%emt 0:0:59]} Bf6 {[%emt 0:3:43]} 24. Rce1 {[%emt 0:2:26]} Bf5 {[%emt 0:2:16]} 25. Nd4 {[%emt 0:2:22]} Bg6 {[%emt 0:1:50]} 26. Nf3 {[%emt 0:2:26]} h6 {[%emt 0:0:40]} 27. Qb4 {[%emt 0:3:45]} Bd3 {[%emt 0:2:39]} 28. Rxe8+ {[%emt 0:3:32]} Rxe8 {[%emt 0:2:34]} 29. Re1 {[%emt 0:0:2]} Bc2 {[%emt 0:2:39]} 30. Bxd6 {[%emt 0:5:38]} Rxe1+ {[%emt 0:9:42]} 31. Nxe1 {[%emt 0:1:54]} Bd4+ {[%emt 0:0:11]} 32. Kh1 {[%emt 0:9:59]} Qf5 {[%emt 0:2:51]} 33. Nf3 {[%emt 0:0:17]} Qd3 {[%emt 0:0:57]} 34. h3 {[%emt 0:3:16]} Be3 {[%emt 0:1:46]} 35. Bg3 {[%emt 0:2:56]} Bxb3 {[%emt 0:2:22]} 36. d6 {[%emt 0:1:2]} Bxc4 {[%emt 0:1:6]} 37. Qe1 {[%emt 0:1:1]} Bb5 {[%emt 0:1:17]} 38. Ne5 {[%emt 0:0:42]} Qd2 {[%emt 0:0:21]} 39. Nf3 {[%emt 0:0:34]} Qxe1+ {[%emt 0:0:42]} 40. Bxe1 {[%emt 0:0:20]} Bc5 {[%emt 0:0:14]} 41. Bg3 {[%emt 0:0:0]} f6 {[%emt 0:0:0]} 42. Nd2 {[%emt 0:0:0]} Kf7 {[%emt 0:0:0]} 43. Nb3 {[%emt 0:0:0]} Be3 {[%emt 0:0:0]} 44. Be1 {[%emt 0:0:0]} Ke6 {[%emt 0:0:0]} 45. Bb4 {[%emt 0:0:0]} Kd5 {[%emt 0:0:0]} 0-1

[Event "56th Biel Festival MTO 2023"]
[White "Erdos,Viktor"]
[Black "Ajay Krishna,S."]
[Site "Biel"]
[Round "4.10"]
[Annotator "ChessBase"]
[Result "0-1"]
[Date "2023.07.20"]
[WhiteElo "2571"]
[BlackElo "2390"]
[PlyCount "70"]
[TimeControl "60"]

1. e4 {[%emt 0:0:0]} c5 {[%emt 0:0:0]} 2. Nc3 {[%emt 0:0:0]} Nc6 {[%emt 0:0:0]} 3. Bb5 {[%emt 0:0:0]} Nd4 {[%emt 0:0:0]} 4. Nf3 {[%emt 0:0:0]} e6 {[%emt 0:0:0]} 5. O-O {[%emt 0:0:0]} a6 {[%emt 0:0:0]} 6. Bd3 {[%emt 0:0:0]} Nc6 {[%emt 0:0:0]} 7. e5 {[%emt 0:0:5]} Qc7 {[%emt 0:3:29]} 8. Re1 {[%emt 0:3:43]} Nge7 {[%emt 0:5:5]} 9. Be4 {[%emt 0:39:7]} Rb8 {[%emt 0:21:27]} 10. d4 {[%emt 0:20:11]} cxd4 {[%emt 0:13:9]} 11. Nxd4 {[%emt 0:0:7]} Ng6 {[%emt 0:5:13]} 12. Bxg6 {[%emt 0:6:32]} hxg6 {[%emt 0:0:39]} 13. Nf3 {[%emt 0:0:2]} b5 {[%emt 0:3:51]} 14. Bf4 {[%emt 0:0:53]} Bb7 {[%emt 0:6:17]} 15. Ng5 {[%emt 0:1:1]} Ne7 {[%emt 0:10:36]} 16. Nce4 {[%emt 0:0:12]} Nf5 {[%emt 0:5:1]} 17. Qd2 {[%emt 0:1:16]} Qc6 {[%emt 0:2:30]} 18. Rad1 {[%emt 0:2:31]} Rd8 {[%emt 0:9:28]} 19. f3 {[%emt 0:1:4]} Be7 {[%emt 0:0:58]} 20. Qf2 {[%emt 0:6:11]} f6 {[%emt 0:0:53]} 21. Nh3 {[%emt 0:0:25]} g5 {[%emt 0:4:51]} 22. Be3 {[%emt 0:0:4]} g4 {[%emt 0:1:13]} 23. Nf4 {[%emt 0:7:53]} gxf3 {[%emt 0:0:54]} 24. Bc5 {[%emt 0:0:2]} Bxc5 {[%emt 0:2:47]} 25. Nxc5 {[%emt 0:0:8]} Kf7 {[%emt 0:1:50]} 26. g4 {[%emt 0:3:36]} Ne3 {[%emt 0:0:28]} 27. Nxb7 {[%emt 0:1:57]} Nxg4 {[%emt 0:0:4]} 28. Nxd8+ {[%emt 0:0:43]} Rxd8 {[%emt 0:0:0]} 29. Rd6 {[%emt 0:4:9]} Qb7 {[%emt 0:3:0]} 30. Red1 {[%emt 0:2:46]} Nxf2 {[%emt 0:0:17]} 31. Kxf2 {[%emt 0:0:3]} Qe4 {[%emt 0:1:8]} 32. Kg3 {[%emt 0:1:16]} f2 {[%emt 0:0:26]} 33. Nxe6 {[%emt 0:0:19]} dxe6 {[%emt 0:0:19]} 34. Rxd8 {[%emt 0:0:4]} Qe1 {[%emt 0:0:18]} 35. R1d7+ {[%emt 0:1:6]} Kg6 {[%emt 0:0:4]} 0-1